[Event "44th Chess Olympiad Open 2022"]
[Site "Chennai"]
[Date "2022.08.06"]
[Round "8.6"]
[White "Maghsoodloo, Parham"]
[Black "Moussard, Jules"]
[Result "1/2-1/2"]
[WhiteElo "2701"]
[BlackElo "2672"]
[Annotator "TA"]
[PlyCount "91"]
[EventDate "2022.??.??"]
[TimeControl "60"]

{[%evp 13,91,6,0,3,7,0,0,0,0,0,0,0,0,-1,0,-8,52,44,70,72,69,53,74,0,0,0,0,0,0,
0,0,0,0,0,0,0,0,-24,-16,-26,0,0,24,-52,0,0,0,0,250,-12,-18,-37,-58,-28,-35,-27,
0,0,0,-43,0,0,0,0,17,12,50,14,18,9,9,11,9,14,15,13,21,0,29,0]} 1. d4 {[%emt 0:
00:00]} Nf6 {[%emt 0:00:06]} 2. c4 {[%emt 0:00:05]} e6 {[%emt 0:00:07]} 3. Nf3
{[%emt 0:00:05]} d5 {[%emt 0:00:17]} 4. g3 {[%emt 0:00:06]} Bb4+ {[%emt 0:00:
00]} 5. Bd2 {[%emt 0:00:09]} Be7 {[%emt 0:00:04]} 6. Bg2 {[%emt 0:00:03]} O-O {
[%emt 0:00:08]} 7. O-O {[%emt 0:00:04]} Nbd7 {[%emt 0:00:29]} 8. c5 {[%emt 0:
00:00] [#] E11: Bogo-Indian.} b6 $146 {[%emt 0:12:45]} ({Predecessor:} 8... Ne4
9. Nc3 f5 10. Bf4 g5 11. Be3 c6 12. Nxe4 fxe4 13. Ne5 Nxe5 14. dxe5 Qe8 15. f3
exf3 16. exf3 {1-0 (31) Donchenko,A (2599)-Niemann,H (2656) Jermuk 2022}) 9. c6
{[%emt 0:00:07]} Nb8 {[%emt 0:00:05]} 10. Qc2 {[%emt 0:00:19] The position is
equal.} a5 {[%emt 0:04:10]} 11. Rc1 {[%emt 0:14:07]} Ba6 {[%emt 0:14:44]} 12.
Bf4 {[%emt 0:10:15]} Ne4 {[%emt 0:06:48]} 13. a4 {[%emt 0:11:42]} g5 {[%emt 0:
00:00]} 14. Be3 {[%emt 0:00:25]} f6 {[%emt 0:12:20]} ({Black should try} 14...
Nd6 $11) 15. h4 $14 {[%emt 0:04:52]} Nd6 {[%emt 0:10:29]} 16. Bh3 {[%emt 0:00:
00]} Bc8 {[%emt 0:00:15]} 17. Na3 {[%emt 0:00:10] Inhibits Nc4. White is much
more active.} Na6 {[%emt 0:01:49]} 18. Nb5 {[%emt 0:10:56]} (18. hxg5 $16 fxg5
19. Qb3) 18... Nb4 $11 {[%emt 0:03:58]} 19. Qb1 {[%emt 0:00:09]} gxh4 {[%emt 0:
00:00]} 20. Nxh4 {[%emt 0:00:50]} f5 {[%emt 0:00:07] [#] ...f4 is the strong
threat.} 21. Bh6 {[%emt 0:03:44]} Rf6 {[%emt 0:01:46]} 22. Bg5 {[%emt 0:03:46]}
Rf7 $36 {[%emt 0:00:13] Black has good play.} 23. Nxd6 {[%emt 0:00:00]} cxd6 {
[%emt 0:00:20]} 24. c7 {[%emt 0:02:07]} Qf8 {[%emt 0:00:14]} 25. Bxe7 {[%emt 0:
01:26]} Rxe7 {[%emt 0:00:19]} 26. Ra3 {[%emt 0:00:08]} Ra7 {[%emt 0:09:03]} 27.
Rac3 {[%emt 0:00:41]} Qf7 {[%emt 0:00:10][%cal Re7c7]} (27... Qe8 $5 {[%cal
Re8a4]}) 28. g4 {[%emt 0:00:32]} (28. Ng2 $11) 28... Qg7 {[%emt 0:05:08]} ({
Don't play} 28... Raxc7 29. gxf5 Na6 30. fxe6 Bxe6 31. Nf5 Bxf5 32. Qxf5 $16) (
28... f4 $1 $15) 29. Ng2 $1 {[%emt 0:02:50][%cal Rg4f5]} fxg4 {[%emt 0:01:38]}
30. Bxg4 {[%emt 0:07:48] [#] Strongly threatening Rg3.} Qxd4 $2 {[%emt 0:00:06]
} ({Resist} 30... Qxg4 31. Rg3 Qxg3 32. fxg3 $16) (30... Kh8 $11 {and Black
stays safe.} 31. Bh3 (31. Ne3 $2 Qxd4 32. Bh3 Qg7+ 33. Ng2 d4 $19) 31... Qf7)
31. Rd1 $2 {[%emt 0:00:03]} Qf6 {[%emt 0:02:06]} 32. Rf3 {[%emt 0:00:59]} Qh6 {
[%emt 0:01:37]} 33. Rh3 {[%emt 0:05:47]} Qf8 {[%emt 0:00:00]} 34. Rf3 {[%emt 0:
01:08]} Qh6 {[%emt 0:00:03] Hoping for ...Rg7.} 35. Rh3 {[%emt 0:00:18]} Qf8 {
[%emt 0:01:04]} 36. Rf3 {[%emt 0:02:41]} Rf7 {[%emt 0:00:00]} 37. Rxf7 {
[%emt 0:01:23]} Qxf7 {[%emt 0:00:01]} 38. Qc1 {[%emt 0:00:01] aiming for Qg5+.}
Qxc7 {[%emt 0:01:15]} 39. Qh6 {[%emt 0:00:04] Threatens to win with Rc1.} Qe7 {
[%emt 0:01:02]} (39... Qg7 $5 {[%cal Rg7h6]} 40. Bxe6+ Bxe6 41. Qxe6+ Rf7 $11)
40. Rc1 {[%emt 0:00:52]} (40. Kh1 $5 {[%cal Rg2h4]}) 40... Rc7 {[%emt 0:00:30]}
41. Rxc7 {[%emt 0:32:03]} Qxc7 {[%emt 0:30:01]} 42. Bxe6+ {[%emt 0:01:45]} Bxe6
{[%emt 0:00:00]} 43. Qxe6+ {[%emt 0:00:00]} Kf8 $1 {[%emt 0:00:00]} 44. Qf6+ {
[%emt 0:00:00] White has compensation.} Kg8 {[%emt 0:00:00]} 45. Qe6+ {[%emt 0:
00:00]} Kf8 $1 {[%emt 0:00:00]} 46. Qf6+ {[%emt 0:00:00] Weighted Error Value:
White=0.23 (precise) /Black=0.22 (precise)} 1/2-1/2

[Event "44th Chess Olympiad Open 2022"]
[Site "Chennai"]
[Date "2022.08.06"]
[Round "8.6"]
[White "Idani, Pouya"]
[Black "Cornette, Matthieu"]
[Result "1-0"]
[WhiteElo "2641"]
[BlackElo "2551"]
[Annotator "TA"]
[PlyCount "67"]
[EventDate "2022.??.??"]
[TimeControl "60"]

{[%evp 9,67,8,13,11,12,2,0,0,8,8,3,3,3,6,8,-7,0,0,0,0,20,26,21,22,15,19,6,14,0,
22,22,-67,17,20,17,17,27,24,246,260,246,32,480,451,459,428,29988,29989,29986,
699,685,660,721,714,714,708,668,668,695,598]} 1. e4 {[%emt 0:00:03]} c5 {
[%emt 0:00:34]} 2. Nf3 {[%emt 0:00:05]} Nc6 {[%emt 0:00:04]} 3. Bc4 {[%emt 0:
00:00]} e6 {[%emt 0:01:07]} 4. O-O {[%emt 0:00:05]} Nf6 {[%emt 0:00:37]} 5. Re1
{[%emt 0:00:10][%cal Yf1e1,Ye1e4,Ye4d4]} Nxe4 {[%emt 0:01:56]} 6. Rxe4 {
[%emt 0:00:05] B30: Sicilian: 2...Nc6 3 Bb5, lines without ...g6.} d5 {[%emt 0:
00:03] [#]} 7. Bxd5 {[%emt 0:00:06]} Qxd5 {[%emt 0:00:03]} 8. Nc3 {[%emt 0:00:
06] The position is equal.} Qf5 {[%emt 0:00:12]} 9. d4 {[%emt 0:00:00]} cxd4 {
[%emt 0:04:25]} 10. Nxd4 {[%emt 0:00:08]} Nxd4 {[%emt 0:00:12]} 11. Rxd4 {
[%emt 0:00:09] Rd8+ is the strong threat.} Be7 {[%emt 0:00:08] Prevents Rd8+.}
12. Qe2 {[%emt 0:02:15]} O-O {[%emt 0:04:05]} (12... Bd7 {seems wilder.} 13.
Bf4 Bc6 14. Bd6 Bxd6 15. Rxd6 Qg5) 13. Be3 {[%emt 0:00:11] [#]} b6 $146 {
[%emt 0:30:29]} ({Predecessor:} 13... Bf6 14. Rf4 Qg6 15. Rg4 Qf5 16. Ne4 e5
17. h3 Kh8 18. Ng3 Qe6 19. Nh5 Bd7 {½-½ (42) Adhiban,B (2648)-Sethuraman,S 
(2619) chess24.com INT 2022}) 14. Rad1 {[%emt 0:01:03]} Re8 {[%emt 0:11:23]}
15. Rf4 {[%emt 0:12:28]} Qg6 {[%emt 0:00:12]} 16. Rg4 {[%emt 0:04:10]} Qf5 {
[%emt 0:05:47][%cal Yc8a6]} 17. Bh6 {[%emt 0:15:25]} Bf8 {[%emt 0:03:11][%cal
Yc8a6]} 18. Ne4 {[%emt 0:07:55][%cal Yh6g7] And now Bxg7! would win.} Ba6 {
[%emt 0:04:40]} 19. c4 $1 {[%emt 0:00:09] Black must now prevent Ng3.} Red8 {
[%emt 0:01:38][%cal Ya6c4] aiming for ...Bxc4!} (19... Bxc4 $2 20. Qxc4 $1 Rad8
21. Bd2 $1 $18) 20. Ng3 {[%emt 0:15:51]} ({White should play} 20. h3 $1 $11 f6
21. Bxg7 Bxg7 22. Ng3) 20... Rxd1+ {[%emt 0:04:09]} (20... Qc5 $1 $15) 21. Qxd1
$11 {[%emt 0:03:06]} Qe5 {[%emt 0:00:10] [#] Strongly threatening ...f5.} 22.
Bxg7 $1 {[%emt 0:10:09]} Bxg7 {[%emt 0:00:55]} 23. Nh5 $1 {[%emt 0:00:02]} Kh8
{[%emt 0:05:34]} 24. Rxg7 $18 {[%emt 0:00:56]} Bxc4 {[%emt 0:00:39]} 25. h4 $2
$40 {[%emt 0:17:44] Black needs to defend precisely.} (25. Rxf7 $18 {Hoping
for Nf6.} Kg8 26. Rg7+ Kh8 27. Rxa7 $3) 25... Qe2 $2 {[%emt 0:12:30]} (25...
Be2 $14 26. Qc2 Qxh5) 26. Qd4 {[%emt 0:01:38][%cal Yg7g8]} ({Not} 26. Qxe2 Bxe2
27. f3 Bd3 $11) 26... e5 {[%emt 0:00:24] [#]} 27. Qd6 {[%emt 0:01:18][%cal
Yd6f6] Qf6! would kill now.} Qe1+ {[%emt 0:00:00]} (27... Qxh5 $18 28. Rg5 Qxg5
29. hxg5 Bxa2) 28. Kh2 {[%emt 0:00:05]} Qxf2 {[%emt 0:00:10]} 29. Rg4 {[%emt 0:
01:58]} (29. Rg3 $142 Bd3 30. Qxe5+ f6 31. Qe7 Qxg3+ 32. Nxg3 h6 33. Nh5 Rg8
34. Qxf6+ Kh7 35. Qe7+ Kh8 36. Qe5+ Kh7 37. Qc7+ Kg6 38. Nf4+ Kf6 39. Qd6+ Kf5
40. Nxd3) 29... Qf5 {[%emt 0:00:50] White is clearly winning.} 30. Rxc4 {
[%emt 0:01:52]} Qxh5 {[%emt 0:00:01]} 31. Qf6+ {[%emt 0:00:24]} Kg8 {[%emt 0:
00:02]} 32. Kh3 {[%emt 0:01:31]} ({Stronger than} 32. g4 Qg6 33. Qxe5 h6 $11)
32... Re8 {[%emt 0:01:36]} 33. Rg4+ {[%emt 0:00:35]} Kf8 {[%emt 0:00:04]} 34.
Rg5 {[%emt 0:00:27] Weighted Error Value: White=0.38/Black=0.69} 1-0

[Event "44th Chess Olympiad Open 2022"]
[Site "Chennai"]
[Date "2022.08.06"]
[Round "8.6"]
[White "Fressinet, Laurent"]
[Black "Tabatabaei, M. Amin"]
[Result "1/2-1/2"]
[WhiteElo "2631"]
[BlackElo "2664"]
[Annotator "TA"]
[PlyCount "76"]
[EventDate "2022.??.??"]
[TimeControl "60"]

{[%evp 10,76,16,0,5,7,0,0,0,0,0,0,0,0,0,0,0,4,6,-6,0,2,25,0,0,0,1,0,10,0,0,0,0,
0,0,0,0,0,0,0,0,0,0,-7,0,-15,-22,-27,-15,-15,-15,-15,-15,-15,-15,-15,-15,-15,
-15,-15,-15,-15,-15,-15,-15,-15,0,-15,0]} 1. d4 {[%emt 0:00:11]} Nf6 {[%emt 0:
00:00]} 2. c4 {[%emt 0:00:05]} e6 {[%emt 0:00:07]} 3. g3 {[%emt 0:00:13]} d5 {
[%emt 0:00:07]} 4. Bg2 {[%emt 0:00:05]} dxc4 {[%emt 0:00:06]} 5. Qa4+ {[%emt 0:
00:00]} Nbd7 {[%emt 0:00:42]} 6. Qxc4 {[%emt 0:00:32]} c5 {[%emt 0:00:35] E03:
Open Catalan: 5 Qa4+ Nbd7 6 Qxc4.} 7. Nf3 {[%emt 0:00:31]} a6 {[%emt 0:00:10]}
8. Qb3 {[%emt 0:00:17]} cxd4 {[%emt 0:03:19]} 9. Nxd4 {[%emt 0:02:52]} Nc5 {
[%emt 0:00:09][%csl Yb3,Yd4]} 10. Qe3 {[%emt 0:00:14]} Nd5 {[%emt 0:00:06]} 11.
Qd2 {[%emt 0:00:48]} b5 {[%emt 0:00:11]} 12. Nc3 {[%emt 0:02:43]} Bb7 {[%emt 0:
00:09] Prevents Nc6.} 13. Nxd5 {[%emt 0:02:15]} Bxd5 {[%emt 0:00:06] [#]} 14.
O-O $146 {[%emt 0:01:18]} ({Predecessor:} 14. Nc6 Qd7 15. Ne5 Qb7 16. Bxd5 exd5
17. O-O Be7 18. Rd1 O-O 19. Qc2 Rac8 20. Qf5 {0-1 (48) Jumabayev,R (2658)
-Petrosyan,M (2605) Riga 2021}) 14... Bxg2 {[%emt 0:02:49]} 15. Kxg2 {[%emt 0:
01:44]} e5 {[%emt 0:04:29]} 16. Nb3 {[%emt 0:11:39]} Qxd2 {[%emt 0:00:00]} 17.
Bxd2 {[%emt 0:05:59]} Na4 {[%emt 0:00:17]} 18. Rab1 {[%emt 0:02:07]} Rc8 {
[%emt 0:20:49]} 19. Rfc1 {[%emt 0:09:48]} Rxc1 {[%emt 0:00:17]} 20. Nxc1 {
[%emt 0:12:15]} Bd6 {[%emt 0:03:21]} 21. b3 {[%emt 0:05:34]} Nc5 {[%emt 0:00:
00]} 22. Bb4 {[%emt 0:03:19]} e4 {[%emt 0:10:05] Inhibits Nd3.} 23. a4 {
[%emt 0:07:03]} Kd7 {[%emt 0:00:00]} 24. axb5 {[%emt 0:07:18]} axb5 {[%emt 0:
00:00]} 25. Na2 {[%emt 0:00:25]} Rc8 {[%emt 0:09:58]} 26. Rc1 {[%emt 0:07:57]}
Rc6 {[%emt 0:12:18]} 27. Bxc5 {[%emt 0:03:58]} Bxc5 $11 {[%emt 0:00:43]
Endgame KRB-KRN} 28. e3 {[%emt 0:00:44]} f5 {[%emt 0:01:26]} 29. h4 {[%emt 0:
03:22] The position is equal.} g6 {[%emt 0:08:18]} 30. Kf1 {[%emt 0:00:00]} Rc7
{[%emt 0:00:34]} 31. Ke2 {[%emt 0:01:50]} Bd6 {[%emt 0:02:06]} 32. Rxc7+ {
[%emt 0:00:07]} Kxc7 {[%emt 0:00:03] KB-KN} 33. Kd1 {[%emt 0:01:11]} Kc6 {
[%emt 0:00:05]} 34. Ke2 {[%emt 0:01:38]} Kc5 {[%emt 0:00:06]} 35. Kd1 {[%emt 0:
00:12]} Be5 {[%emt 0:00:05]} 36. Ke2 {[%emt 0:00:38]} Bf6 {[%emt 0:00:00]} 37.
Kd2 {[%emt 0:00:36]} Be5 {[%emt 0:04:33]} 38. Ke2 {[%emt 0:00:09]} Bf6 {
[%emt 0:00:06] A rather calm draw. Weighted Error Value: White=0.02 (flawless)
/Black=0.03 (flawless)} 1/2-1/2

[Event "44th Chess Olympiad Open 2022"]
[Site "Chennai"]
[Date "2022.08.06"]
[Round "8.6"]
[White "Lagarde, Maxime"]
[Black "Mousavi, Seyed Khalil"]
[Result "1/2-1/2"]
[WhiteElo "2631"]
[BlackElo "2537"]
[Annotator "TA"]
[PlyCount "88"]
[EventDate "2022.??.??"]
[TimeControl "60"]

{[%evp 14,88,32,25,21,22,21,14,15,15,34,0,11,0,0,-12,0,11,0,-41,33,5,0,0,0,0,
20,0,0,0,1,4,12,11,14,0,0,0,0,0,0,0,0,-8,-13,-13,-12,-8,0,0,0,0,0,0,0,0,0,0,0,
0,0,0,0,0,0,0,0,0,0,0,0,0,0,0,0,0,0]} 1. e4 {[%emt 0:00:04]} e6 {[%emt 0:00:34]
} 2. d4 {[%emt 0:00:24]} d5 {[%emt 0:00:08]} 3. Nc3 {[%emt 0:00:55]} Nf6 {
[%emt 0:00:30]} 4. Bg5 {[%emt 0:00:25]} Be7 {[%emt 0:01:05]} 5. e5 {[%emt 0:00:
00]} Nfd7 {[%emt 0:00:07]} 6. h4 {[%emt 0:00:16]} h6 {[%emt 0:03:59]} 7. Bxe7 {
[%emt 0:02:49]} Qxe7 {[%emt 0:00:06]} 8. f4 {[%emt 0:01:09]} a6 {[%emt 0:06:33]
C14: French: Classical System: 4 Bg5 Be7 main line.} 9. Nf3 {[%emt 0:04:16]} c5
{[%emt 0:06:47]} 10. Qd2 {[%emt 0:07:55]} b5 {[%emt 0:09:37] [#]} 11. a3 $146 {
[%emt 0:05:19]} ({Predecessor:} 11. Ne2 Nc6 12. dxc5 Nxc5 13. O-O-O b4 14. Ned4
Bd7 15. Nxc6 Bxc6 16. Nd4 Bd7 17. Kb1 {½-½ (42) Yu,Y (2675)-Nguyen,N (2621)
Tabriz 2014}) 11... Bb7 {[%emt 0:00:00]} 12. Bd3 {[%emt 0:06:04]} O-O {[%emt 0:
00:00]} 13. g4 {[%emt 0:18:36]} Nc6 {[%emt 0:00:31]} 14. O-O-O {[%emt 0:12:34]
[%cal Ye1c1,Yc1d2,Yd2e3]} b4 {[%emt 0:13:51]} 15. axb4 {[%emt 0:00:00]} cxd4 {
[%emt 0:00:59]} 16. Ne2 {[%emt 0:00:00]} Qxb4 {[%emt 0:03:49]} (16... Nxb4 $15
17. Kb1 Qc5) 17. Qxb4 {[%emt 0:00:58]} Nxb4 {[%emt 0:00:08] The position is
equal.} 18. Nexd4 {[%emt 0:00:33]} Nc5 {[%emt 0:01:44]} 19. Kd2 {[%emt 0:01:18]
} a5 {[%emt 0:02:04]} 20. Ke3 {[%emt 0:04:06]} a4 {[%emt 0:04:36]} 21. Ra1 {
[%emt 0:03:28]} Rfb8 {[%emt 0:03:41]} 22. Ra3 {[%emt 0:01:58]} Nbxd3 {[%emt 0:
06:32]} 23. cxd3 {[%emt 0:00:07] Rc1 is the strong threat.} Ba6 $1 {[%emt 0:00:
05]} 24. Rh2 {[%emt 0:10:19]} (24. Rb1 {looks sharper.} Rb4 25. Ne1 Rab8 26.
Rc1) 24... Nxd3 {[%emt 0:02:46]} 25. Rxd3 {[%emt 0:00:18]} Bxd3 {[%emt 0:00:07]
} 26. Kxd3 {[%emt 0:00:04]} a3 {[%emt 0:00:53]} 27. bxa3 {[%emt 0:00:23]} Rxa3+
{[%emt 0:00:05]} 28. Kd2 {[%emt 0:04:46]} Rb2+ {[%emt 0:00:00]} 29. Kc1 {
[%emt 0:00:09]} Rxh2 {[%emt 0:00:38]} 30. Nxh2 {[%emt 0:00:04]} Re3 {[%emt 0:
01:47] And now ...Re4 would win.} 31. Nhf3 {[%emt 0:08:29]} Re4 {[%emt 0:00:34]
} 32. f5 {[%emt 0:00:15]} exf5 {[%emt 0:00:50]} 33. gxf5 {[%emt 0:00:12]} g5 {
[%emt 0:01:07]} 34. fxg6 {[%emt 0:02:34]} fxg6 {[%emt 0:00:00]} 35. Kd2 {
[%emt 0:02:59]} g5 {[%emt 0:01:00]} 36. hxg5 {[%emt 0:00:06]} hxg5 {[%emt 0:00:
06]} 37. Nc6 {[%emt 0:00:03]} g4 {[%emt 0:02:38]} 38. Ng5 {[%emt 0:00:04]} g3 {
[%emt 0:02:00] [#] Strongly threatening ...g2.} 39. Nxe4 {[%emt 0:00:04]} g2 {
[%emt 0:00:07]} 40. Nf6+ {[%emt 0:00:44]} Kh8 {[%emt 0:00:00]} (40... Kf7 $5
41. e6+ (41. Nd8+ $2 Kg6 $19) 41... Kxf6 $11) 41. e6 {[%emt 0:33:14] Hoping
for e7.} g1=Q {[%emt 0:30:05]} 42. e7 {[%emt 0:00:04]} Qf2+ {[%emt 0:00:07]}
43. Kd1 {[%emt 0:00:04]} Qf1+ {[%emt 0:00:15]} (43... Qxf6 $5 44. e8=Q+ Kg7 $14
) 44. Kd2 {[%emt 0:00:04]} Qf2+ {[%emt 0:00:04] An even fight not without its
subleties. Weighted Error Value: White=0.06 (flawless) /Black=0.06 (flawless)}
1/2-1/2

[Event "44th Chess Olympiad Open 2022"]
[Site "Chennai"]
[Date "2022.08.06"]
[Round "8.7"]
[White "Korobov, Anton"]
[Black "Supi, Luis Paulo"]
[Result "1/2-1/2"]
[WhiteElo "2692"]
[BlackElo "2603"]
[Annotator "TA"]
[PlyCount "60"]
[EventDate "2022.??.??"]
[TimeControl "60"]

{[%evp 9,60,25,18,22,40,28,21,29,16,17,25,18,19,23,31,32,34,21,29,22,31,20,18,
14,18,15,14,24,18,14,7,15,14,5,5,4,3,8,4,0,0,0,0,0,0,0,0,0,0,0,0,0,0]} 1. d4 {
[%emt 0:00:06]} d5 {[%emt 0:00:07]} 2. c4 {[%emt 0:00:12]} e6 {[%emt 0:00:07]}
3. Nc3 {[%emt 0:00:07]} a6 {[%emt 0:01:30]} 4. cxd5 {[%emt 0:00:43]} exd5 {
[%emt 0:00:08]} 5. Bf4 {[%emt 0:00:05]} Nf6 {[%emt 0:00:38]} 6. e3 {[%emt 0:00:
00] D31: Queen's Gambit Declined: Semi-Slav without ...Nf6 (+ Marshall Gambit
and Noteboom) and Exchange Variation lines without ...Nf6.} c5 {[%emt 0:00:26]}
7. Nge2 {[%emt 0:00:00]} Nc6 {[%emt 0:00:23]} 8. g3 {[%emt 0:00:00]} cxd4 {
[%emt 0:00:27]} 9. exd4 {[%emt 0:00:19] [#]} h6 $146 {[%emt 0:00:45]} ({
Predecessor:} 9... Bg4 10. Bg2 Bb4 11. h3 Bxc3+ 12. bxc3 Be6 13. Bg5 O-O 14.
O-O h6 15. Bxf6 Qxf6 {1-0 (56) Wang,S (2459)-Nie,X (2376) Shaoxing 2021}) 10.
Bg2 {[%emt 0:05:24]} Bd6 {[%emt 0:06:39]} 11. O-O {[%emt 0:01:21]} ({Wrong is} 
11. Nxd5 $2 Nxd5 12. Bxd5 Bb4+ 13. Nc3 Bxc3+ 14. bxc3 Qxd5 $19) 11... O-O {
[%emt 0:01:51]} 12. Bxd6 {[%emt 0:03:49]} Qxd6 {[%emt 0:00:05]} 13. Nf4 {
[%emt 0:00:44][%cal Rf4d5]} Be6 {[%emt 0:16:30]} 14. Re1 {[%emt 0:06:30]} Rfe8
{[%emt 0:01:21]} 15. Nxe6 {[%emt 0:06:28]} Rxe6 {[%emt 0:00:32]} 16. Rxe6 {
[%emt 0:00:16]} Qxe6 {[%emt 0:05:17]} 17. Qb3 {[%emt 0:02:28]} Nxd4 {[%emt 0:
00:00] Pair of Knights!} 18. Qxb7 {[%emt 0:01:36]} Rd8 {[%emt 0:01:46]} 19. Rd1
{[%emt 0:02:00] The position is equal.} Ne2+ {[%emt 0:04:18]} 20. Nxe2 {
[%emt 0:02:39]} Qxe2 {[%emt 0:00:03]} 21. Qb3 {[%emt 0:00:18]} Ne4 {[%emt 0:00:
00]} 22. Bxe4 {[%emt 0:02:02]} Qxe4 $11 {[%emt 0:02:30] Endgame KQR-KQR} 23.
Qb6 {[%emt 0:00:43][%csl Ya6,Yd8]} Re8 {[%emt 0:04:58]} 24. Qxa6 {[%emt 0:07:
43]} Qc2 $1 {[%emt 0:00:46][%csl Yb2,Yd1]} 25. Qf1 {[%emt 0:00:00]} Qxb2 {
[%emt 0:00:11]} 26. Rxd5 {[%emt 0:00:07]} Qxa2 {[%emt 0:00:05]} 27. Qd1 {
[%emt 0:00:46]} Re1+ {[%emt 0:00:44]} 28. Qxe1 {[%emt 0:00:06] [#] Rd8+ would
kill now.} Qxd5 {[%emt 0:00:02]} 29. Qe8+ {[%emt 0:00:20]} Kh7 {[%emt 0:00:00]}
30. h4 {[%emt 0:00:15]} h5 {[%emt 0:00:08] Weighted Error Value: White=0.03 
(flawless) /Black=0.02 (flawless)} 1/2-1/2

[Event "44th Chess Olympiad Open 2022"]
[Site "Chennai"]
[Date "2022.08.06"]
[Round "8.7"]
[White "Shevchenko, Kirill"]
[Black "Mekhitarian, Krikor Sevag"]
[Result "1/2-1/2"]
[WhiteElo "2654"]
[BlackElo "2542"]
[Annotator "TA"]
[PlyCount "98"]
[EventDate "2022.??.??"]
[TimeControl "60"]

{[%evp 9,98,27,18,8,18,2,10,5,0,-5,-3,-2,0,0,15,-1,31,27,22,25,37,35,61,69,60,
59,64,64,102,107,102,108,125,96,96,96,96,100,89,22,96,18,111,102,121,81,152,0,
111,100,120,48,151,161,145,118,189,0,137,0,0,0,0,0,0,-297,-290,-279,-267,-283,
-252,-315,-275,-305,-269,-1069,-1062,-1018,-253,-246,0,0,0,0,0,0,0,0,0,0,0]} 1.
e4 {[%emt 0:00:03]} e5 {[%emt 0:00:07]} 2. Nf3 {[%emt 0:00:05]} Nc6 {[%emt 0:
00:00]} 3. Bb5 {[%emt 0:00:05]} Nf6 {[%emt 0:00:07]} 4. d3 {[%emt 0:00:38]} Bc5
{[%emt 0:00:06]} 5. Bxc6 {[%emt 0:00:11]} dxc6 {[%emt 0:00:09]} 6. Nbd2 {
[%emt 0:00:04] C65: Ruy Lopez: Berlin Defence (3...Nf6), unusual lines and 4
0-0 Bc5.} Nd7 {[%emt 0:00:33]} 7. O-O {[%emt 0:00:31]} O-O {[%emt 0:02:32]} 8.
Nc4 {[%emt 0:00:31]} Re8 {[%emt 0:03:17]} 9. Kh1 {[%emt 0:00:57]} f6 {[%emt 0:
00:00]} 10. Nh4 {[%emt 0:00:58]} Nf8 {[%emt 0:03:13]} 11. Be3 {[%emt 0:08:51] 
[#]} Bd6 $146 {[%emt 0:02:13]} ({Predecessor:} 11... Qe7 12. Bxc5 Qxc5 13. Ne3
Be6 14. g3 a5 15. a4 Rad8 16. Qe2 Bf7 17. f4 Ne6 {1-0 (42) Nisipeanu,L (2657)
-Krysa,L (2523) Spilimbergo 2018}) 12. g3 {[%emt 0:14:59]} Bh3 {[%emt 0:09:21]}
13. Rg1 {[%emt 0:01:01]} Be6 {[%emt 0:00:08]} 14. Nxd6 {[%emt 0:10:15]} cxd6 {
[%emt 0:00:47]} 15. f4 $1 {[%emt 0:00:23]} f5 {[%emt 0:37:51]} 16. Nxf5 {
[%emt 0:03:10]} Bxf5 {[%emt 0:00:05]} 17. exf5 {[%emt 0:00:06]} exf4 {[%emt 0:
00:00]} 18. Bxf4 {[%emt 0:14:14]} Qa5 {[%emt 0:00:15]} 19. g4 $1 {[%emt 0:00:
00]} Qd5+ {[%emt 0:00:40]} 20. Rg2 {[%emt 0:02:12]} Re7 {[%emt 0:04:50]} 21.
Qf1 {[%emt 0:07:00]} Rae8 {[%emt 0:01:05]} 22. c4 {[%emt 0:03:11]} Qd4 {
[%emt 0:01:36]} 23. Rd1 {[%emt 0:08:22]} Nd7 {[%emt 0:02:08]} 24. Qf2 {[%emt 0:
00:00]} (24. g5 $16) 24... Qf6 {[%emt 0:00:44]} (24... Re4 $11 25. Bg3 (25.
dxe4 Qxd1+ 26. Rg1 Qd3 $15) 25... Qxf2 26. Bxf2 (26. Rxf2 Rxg4 27. Bxd6 Nf6 $11
) 26... Rf4) 25. h3 {[%emt 0:05:27] White is more active.} (25. Qd2 $16) 25...
Nc5 {[%emt 0:04:30]} (25... Re2 $11 {remains equal.} 26. Qxe2 (26. Qxa7 Qxb2
27. Qg1 Qxa2 $14) 26... Rxe2 27. Rxe2 h5) 26. Kh2 $36 {[%emt 0:01:25] White
has strong initiative.} b6 {[%emt 0:01:04]} 27. Qf3 {[%emt 0:01:44]} Qd4 {
[%emt 0:00:23]} (27... Ne6 $142) 28. Qf2 {[%emt 0:02:46]} Qf6 {[%emt 0:00:00]}
29. b3 {[%emt 0:00:00]} d5 {[%emt 0:00:47]} 30. Qf3 {[%emt 0:02:58]} (30. cxd5
$16 {And now d6 would win.} cxd5 31. b4) 30... Qd4 {[%emt 0:02:18]} (30... g5
$14) 31. cxd5 {[%emt 0:00:50]} cxd5 {[%emt 0:00:12]} 32. Qf2 {[%emt 0:00:00]
Inhibits Re1.} Qc3 {[%emt 0:02:00]} (32... Qxf2 $16 {might work better.} 33.
Rxf2 d4) 33. Qf3 {[%emt 0:00:12]} (33. g5 $1 $18) 33... Qd4 $1 {[%emt 0:00:00]}
34. Bc1 {[%emt 0:01:11]} ({Better is} 34. g5 $16) 34... Re3 $1 $11 {[%emt 0:09:
25]} 35. Bxe3 {[%emt 0:00:49]} Rxe3 {[%emt 0:00:04]} 36. Qf1 {[%emt 0:00:48]}
Nxd3 {[%emt 0:01:25]} 37. f6 $2 {[%emt 0:00:27]} (37. Rxd3 $11 Rxd3 38. Re2)
37... Qe5+ $1 $19 {[%emt 0:00:41]} 38. Kg1 {[%emt 0:00:00]} Nf4 $1 {[%emt 0:00:
08]} 39. f7+ {[%emt 0:00:52]} Kf8 {[%emt 0:00:56]} 40. Rc1 {[%emt 0:00:35]} ({
Don't blunder} 40. Rh2 $2 Rg3+ 41. Kh1 Qe4+ 42. Rg2 Rf3 43. Qxf3 Qxf3 $19)
40... Rxh3 {[%emt 0:08:38] White must now prevent ... Qe3+.} (40... Ne2+ $2 {
[#]} 41. Rxe2 $1 Qe6 42. Rc8+ $3 Qxc8 43. Rxe3 $18) 41. Qf2 {[%emt 0:15:10]}
Qe4 {[%emt 0:22:26]} 42. Rc2 $2 {[%emt 0:10:38]} (42. Re1 Qxg2+ 43. Qxg2 Nxg2
44. Kxg2) 42... Rf3 {[%emt 0:00:00] Deflection} ({Stronger than} 42... Qxg2+
43. Qxg2 Nxg2 44. Rc8+ Kxf7 45. Rc7+ Kf6 46. Kxg2 $17) 43. Qh4 {[%emt 0:02:05]}
Qe3+ $2 {[%emt 0:00:00]} (43... Nxg2 44. Rxg2 Qe3+ 45. Kh2 Qf4+ 46. Rg3 Kxf7)
44. Rgf2 {[%emt 0:00:00] Qd8+ is the strong threat.} Rg3+ $2 {[%emt 0:01:52]} (
{Worse is} 44... Kxf7 45. Rc7+ Kg6 46. Rc6+ Kf7 47. Rc7+ Kg6 48. Rc6+ Kf7 49.
Rc7+ $11) ({Black should play} 44... Nh3+ $19 45. Qxh3 Qxf2+ 46. Rxf2 Rxh3) 45.
Kf1 $11 {[%emt 0:00:00] White wants to mate with Qd8+. The position is equal.}
Qd3+ {[%emt 0:00:00]} 46. Rce2 $1 {[%emt 0:00:12][%csl Ge2][%cal Rh4e7]} Qd1+ {
[%emt 0:00:44]} (46... Rf3 $2 47. Qe7#) 47. Re1 {[%emt 0:00:01][%csl Ge1][%cal
Rh4e7] Really sharp!} Qd3+ {[%emt 0:00:25]} 48. Ree2 $1 {[%emt 0:00:00][%csl
Ge2][%cal Rh4e7]} Qb1+ {[%emt 0:02:24]} (48... Rf3 $2 49. Qe7#) 49. Re1 {
[%emt 0:00:04][%csl Ge1][%cal Rh4e7]} Qd3+ {[%emt 0:00:08] Weighted Error
Value: White=0.48/ Black=0.37} 1/2-1/2